bitfinex/quotes_BTCUSD_20260215
["timestamp","ask_amount","ask_price","bid_price","bid_amount"]
[1771144952880,0.0004,70387.0,70382.0,0.09603429]
[1771144953210,0.0004,70387.0,70382.0,0.02542647]
[1771144954894,0.56809964,70411.0,70385.0,0.07103714]
[1771144955108,0.07103156,70392.0,70384.0,0.07103848]
[1771144955944,0.07103156,70392.0,70385.0,0.02499344]
[1771144956384,0.07103156,70392.0,70383.0,0.25601038]
[1771144956385,0.07103156,70392.0,70383.0,0.07103944]
[1771144956553,0.07103156,70392.0,70384.0,0.07103804]
[1771144956970,0.07143156,70392.0,70384.0,0.07103804]
[1771144957146,0.07143156,70392.0,70383.0,0.07103944]
[1771144957478,0.07143156,70392.0,70384.0,0.0710382]
[1771144958022,0.07104113,70382.0,70380.0,4e-05]
[1771144958168,0.09514218,70382.0,70380.0,4e-05]
[1771144958369,0.07104503,70378.0,70371.0,0.07105199]
[1771144958569,0.07104316,70380.0,70372.0,0.07105018]
[1771144958955,0.07104316,70380.0,70373.0,0.07104963]
[1771144959165,1.0947548,70381.0,70373.0,0.07104963]
[1771144959366,1.02371279,70381.0,70374.0,0.07104845]
[1771144960392,1.094755,70381.0,70373.0,0.07104963]
[1771144960704,1.02371279,70381.0,70370.0,4e-05]
[1771144960864,0.07104612,70377.0,70370.0,0.0710923]
[1771144961694,0.02410105,70380.0,70370.0,4e-05]
[1771144961891,0.02410105,70380.0,70374.0,0.07104868]
[1771144962407,0.07104228,70381.0,70374.0,0.07104868]
[1771144962713,0.07104093,70382.0,70374.0,0.07104868]
[1771144963142,0.07104093,70382.0,70375.0,0.0710477]
[1771144963477,0.07104093,70382.0,70374.0,0.07104868]
[1771144963899,0.07104093,70382.0,70374.0,0.07124868]
[1771144964722,0.07104093,70382.0,70375.0,0.07104782]
[1771144966421,0.07104227,70381.0,70374.0,0.07124868]
[1771144966819,0.07104093,70382.0,70375.0,0.07104784]
[1771144968912,0.0710428,70381.0,70374.0,0.0002]
[1771144969124,0.02296846,70386.0,70374.0,0.0002]
[1771144969267,0.07104422,70379.0,70374.0,0.0002]
[1771144969970,0.07104398,70379.0,70374.0,0.0002]
[1771144970189,0.07104153,70382.0,70375.0,0.07104724]
[1771144970795,0.07104256,70381.0,70374.0,0.07124859]
[1771144970994,0.07104228,70381.0,70374.0,0.07124896]
[1771144972237,0.07104228,70381.0,70375.0,0.0002]
[1771144972922,0.0710401,70383.0,70375.0,0.07124769]
[1771144972923,0.07104104,70382.0,70375.0,0.07124769]
[1771144973696,0.07104104,70382.0,70375.0,0.0002]
[1771144974449,0.07104213,70381.0,70375.0,0.0002]
[1771144975291,0.07104104,70382.0,70375.0,0.07124794]
[1771144975627,0.07103931,70384.0,70376.0,0.07104596]
[1771144975824,0.07104063,70383.0,70376.0,0.07104596]
[1771144976007,0.07103948,70384.0,70377.0,0.07104577]
[1771144976207,0.07103948,70384.0,70375.0,0.0002]
[1771144976385,0.07103988,70383.0,70375.0,0.07124735]
[1771144976589,0.07103988,70383.0,70376.0,0.07104664]
[1771144976790,0.07104025,70383.0,70375.0,0.0002]
[1771144976999,0.07103948,70384.0,70377.0,0.07104591]
[1771144977156,0.90968575,70387.0,70375.0,0.0002]
[1771144977157,0.9807226,70387.0,70375.0,0.0002]
[1771144977368,0.07104227,70381.0,70375.0,0.0002]
[1771144978565,0.07104117,70382.0,70375.0,0.07124779]
[1771144978772,0.07103916,70384.0,70376.0,0.0710467]
[1771144979021,0.07103916,70384.0,70377.0,0.0710458]
[1771144980351,4.5e-05,70387.0,70383.0,0.07103948]
[1771144980576,4.5e-05,70387.0,70376.0,0.02322629]
[1771144980788,0.07103493,70388.0,70380.0,0.07104197]
[1771144981001,0.07103493,70388.0,70381.0,0.07104162]
[1771144981220,0.0004,70382.0,70378.0,0.07104415]
[1771144981439,0.0004,70382.0,70375.0,0.0002]
[1771144981901,0.0004,70382.0,70375.0,0.07124694]
[1771144982126,0.0004,70382.0,70380.0,0.07104249]
[1771144982544,0.07103573,70389.0,70381.0,0.07104098]
[1771144982748,0.98116036,70390.0,70381.0,0.07104098]
[1771144982749,0.98116036,70390.0,70382.0,0.07104062]
[1771144982943,0.98116036,70390.0,70381.0,0.07104098]
[1771144982944,4.5e-05,70388.0,70380.0,0.02322629]
[1771144983088,4.5e-05,70388.0,70380.0,0.09426881]
[1771144983288,4.5e-05,70388.0,70380.0,0.07104252]
[1771144983940,0.07103602,70387.0,70380.0,0.07104252]
[1771144984146,4.5e-05,70388.0,70381.0,0.0710419]
[1771144984292,4.5e-05,70388.0,70380.0,0.07104252]
[1771144984696,0.07103649,70387.0,70379.0,0.07104324]
[1771144984900,0.07103649,70387.0,70379.0,0.07104353]
[1771144985103,0.07103649,70387.0,70375.0,0.07124716]
[1771144985104,0.07104091,70382.0,70375.0,0.07124716]
[1771144985325,0.09396246,70384.0,70376.0,0.07104679]
[1771144985549,0.02292346,70384.0,70376.0,0.07104679]
[1771144986284,0.98068044,70385.0,70375.0,0.0002]
[1771144986285,0.28416335,70383.0,70375.0,0.0002]
[1771144986431,0.0710419,70381.0,70375.0,0.0002]
[1771144986840,0.09396435,70382.0,70375.0,0.0002]
[1771144987049,0.07104278,70381.0,70375.0,0.0002]
[1771144987249,0.09396435,70382.0,70375.0,0.0002]
[1771144987444,0.0710419,70381.0,70375.0,0.0002]
[1771144987767,0.18576721,70380.0,70366.0,0.0002]
[1771144987965,0.07104858,70375.0,70367.0,0.07125539]
[1771144988296,4e-05,70370.0,70367.0,0.07125539]
[1771144988741,4e-05,70370.0,70367.0,0.0002]
[1771144988949,0.02296346,70370.0,70367.0,0.0002]
[1771144989372,4e-05,70370.0,70367.0,0.0002]
[1771144992624,0.09397747,70369.0,70367.0,0.0002]
[1771144992833,0.02292346,70368.0,70366.0,0.0002]
[1771144993033,0.09397876,70368.0,70366.0,0.0002]
[1771144993251,0.07105603,70367.0,70366.0,0.0002]
[1771144993425,0.09397876,70368.0,70366.0,0.0002]
[1771144993609,0.02292346,70368.0,70366.0,0.0002]
[1771144993947,0.09397865,70368.0,70366.0,0.0002]
[1771144994202,0.07105603,70367.0,70361.0,5e-05]
[1771144994424,0.07105519,70368.0,70361.0,0.07124164]
[1771144994589,0.0710543,70369.0,70361.0,0.00017986]
[1771144994790,0.07109322,70370.0,70361.0,0.00017986]
[1771144994791,0.07105709,70366.0,70361.0,0.00017986]
[1771144994990,0.02288263,70365.0,70361.0,0.00012986]
[1771144996197,0.07109372,70370.0,70362.0,0.07106055]
[1771144996813,0.02288263,70369.0,70357.0,0.0002]
[1771144996979,0.09394949,70357.0,70351.0,0.0002]
[1771144997381,0.02288263,70355.0,70344.0,1e-08]
[1771144997658,0.0002095,70376.0,70335.0,0.07149785]
[1771144997659,0.07108735,70336.0,70335.0,0.0004095]
[1771144997792,1.8192815,70354.0,70328.0,0.02500884]
[1771144997793,1.8192815,70354.0,70328.0,0.0002]
[1771144997794,0.07108978,70334.0,70328.0,0.0002]
[1771144997982,0.07108839,70335.0,70328.0,0.0002]
[1771144998183,0.90964075,70338.0,70328.0,0.0002]
[1771144998433,0.90964075,70338.0,70329.0,0.07109442]
[1771144998578,0.07108669,70337.0,70329.0,0.07109442]
[1771144998779,0.07108669,70337.0,70329.0,0.07122428]
[1771145000243,0.07108669,70337.0,70329.0,0.00012986]
[1771145000492,0.02288263,70339.0,70329.0,0.00012986]
[1771145000678,0.07107522,70348.0,70330.0,0.02480884]
[1771145000885,0.07108204,70342.0,70332.0,0.07109092]
[1771145001085,0.07108204,70342.0,70334.0,0.07108855]
[1771145001654,0.07108204,70343.0,70335.0,0.07108826]
[1771145002437,0.07108139,70342.0,70335.0,0.07108826]
[1771145002638,1.04761014,70350.0,70333.0,0.02480884]
[1771145002837,0.09395684,70349.0,70334.0,0.0710887]
[1771145002994,0.07108145,70342.0,70335.0,0.07108826]
[1771145003189,4e-05,70340.0,70335.0,0.07104826]
[1771145003492,0.07108524,70339.0,70330.0,0.07109257]
[1771145004219,0.07112524,70340.0,70332.0,0.07109118]
[1771145004774,4e-05,70340.0,70334.0,0.0002]
[1771145006321,0.07112363,70340.0,70334.0,0.0002]
[1771145006697,0.02288263,70338.0,70334.0,0.0002]
[1771145007683,4e-05,70340.0,70326.0,0.0002]
[1771145007887,0.02288263,70329.0,70326.0,0.0002]
[1771145008110,0.16986972,70335.0,70312.0,0.0002095]
[1771145008309,0.41157644,70339.0,70312.0,0.0002095]
[1771145008310,0.07110538,70319.0,70312.0,6.779e-05]
[1771145008508,0.07110646,70318.0,70312.0,6.779e-05]
[1771145008728,0.02288263,70316.0,70312.0,6.779e-05]
[1771145009134,0.07110874,70315.0,70312.0,6.779e-05]
[1771145009352,0.02288263,70313.0,70312.0,6.779e-05]
[1771145009552,0.09399323,70313.0,70312.0,6.779e-05]
[1771145009753,0.02288263,70313.0,70306.0,0.07111714]
[1771145009910,0.02288263,70313.0,70307.0,0.07111666]
[1771145010120,0.02288263,70313.0,70307.0,0.07135616]
[1771145010486,0.07109644,70312.0,70301.0,0.01364822]
[1771145010686,0.07152913,70312.0,70309.0,0.07111442]
[1771145010817,0.07152913,70312.0,70309.0,0.07096636]
[1771145011239,0.07152913,70312.0,70311.0,0.07111262]
[1771145011969,0.07110356,70320.0,70312.0,0.07111131]
[1771145012591,0.07110356,70320.0,70312.0,0.07131131]
[1771145013247,0.34048,70324.0,70312.0,0.01384822]
[1771145013449,0.34060976,70324.0,70317.0,0.07110587]
[1771145013899,0.34060976,70324.0,70312.0,0.0002]
[1771145014101,0.07110522,70319.0,70312.0,0.0002]
[1771145015645,0.07110578,70318.0,70312.0,0.0002]
[1771145016133,1.02524537,70322.0,70305.0,0.0713184]
[1771145016334,0.07111084,70313.0,70305.0,0.07131842]
[1771145016483,0.07111084,70313.0,70305.0,0.0002]
[1771145016484,0.07111193,70312.0,70305.0,0.0002]
[1771145017501,0.07111193,70312.0,70305.0,0.07131811]
[1771145018288,0.07111193,70312.0,70292.0,0.09104]
[1771145018289,0.16986972,70313.0,70294.0,0.000319]
[1771145018427,0.07111945,70305.0,70297.0,0.07112617]
[1771145018626,0.02288263,70309.0,70295.0,0.17752326]
[1771145018829,0.09399797,70309.0,70302.0,0.07112077]
[1771145019214,4e-05,70310.0,70305.0,0.07111793]
[1771145019419,4e-05,70310.0,70305.0,0.24864119]
[1771145019632,0.07111132,70313.0,70305.0,0.26228941]
[1771145019855,0.07111147,70314.0,70307.0,0.07111664]
[1771145020030,0.08409269,70319.0,70305.0,0.19117148]
[1771145020216,0.08409269,70319.0,70306.0,0.07111734]
[1771145020423,0.07110984,70314.0,70306.0,0.07111734]
[1771145020840,0.07110896,70315.0,70307.0,0.071116]
[1771145021033,0.07110962,70314.0,70307.0,0.071116]
[1771145021437,0.07111192,70312.0,70304.0,0.07131929]
[1771145022352,0.07111296,70311.0,70304.0,0.07131929]
[1771145022902,4e-05,70330.0,70315.0,0.17582463]
[1771145023071,0.00012976,70324.0,70316.0,0.01364822]
[1771145023278,0.00012976,70324.0,70315.0,0.17582463]
[1771145023279,0.07110126,70323.0,70315.0,0.07110796]
[1771145023652,0.07110126,70323.0,70316.0,0.07110734]
[1771145023998,0.07110126,70323.0,70314.0,0.07110796]
[1771145023999,0.07110073,70323.0,70315.0,0.07110824]
[1771145024210,0.00012976,70324.0,70316.0,0.07110736]
[1771145024384,0.00012976,70324.0,70320.0,0.07110306]
[1771145024562,0.00012976,70324.0,70313.0,0.1786212]
[1771145024563,0.00012976,70324.0,70319.0,0.07110413]
[1771145024763,0.00012976,70324.0,70322.0,0.07110105]
[1771145026038,0.00012976,70324.0,70323.0,0.07110049]
[1771145026616,1.02528537,70330.0,70325.0,0.07109747]
[1771145026815,1.02528537,70330.0,70324.0,0.07109747]
[1771145027158,1.02528537,70330.0,70323.0,0.07109868]
[1771145027302,1.02528537,70330.0,70324.0,0.07109948]
[1771145027506,1.09637879,70330.0,70323.0,0.07109868]
[1771145028403,1.02528537,70330.0,70323.0,0.07109868]
[1771145028608,0.01325713,70332.0,70329.0,0.07109442]
[1771145028873,0.01325713,70332.0,70326.0,0.07109666]
[1771145029075,0.01325713,70332.0,70325.0,0.07109666]
[1771145029197,0.01325713,70332.0,70327.0,0.07109606]
[1771145029650,0.01325713,70332.0,70320.0,4e-05]
[1771145029651,0.02293028,70331.0,70320.0,4e-05]
[1771145029807,1.09633878,70330.0,70322.0,0.07110118]
[1771145030006,0.02293028,70329.0,70320.0,0.07114251]
[1771145030312,0.02293028,70327.0,70323.0,0.07110046]
[1771145030517,0.02293028,70327.0,70321.0,0.07110186]
[1771145030702,0.02293028,70327.0,70320.0,4e-05]
[1771145031102,0.02293028,70327.0,70321.0,0.07110251]
[1771145031307,0.02293028,70327.0,70323.0,0.07110014]
[1771145031504,1.09633905,70330.0,70323.0,0.07110014]
[1771145031703,1.09633905,70330.0,70323.0,0.07109951]
[1771145031704,1.02524537,70330.0,70323.0,0.07109951]
[1771145032022,1.04817565,70330.0,70323.0,0.07109951]
[1771145033607,0.07109554,70328.0,70320.0,4e-05]
[1771145034154,0.02293028,70329.0,70320.0,4e-05]
[1771145034359,1.02524537,70330.0,70320.0,4e-05]
[1771145034658,0.02293028,70324.0,70320.0,4e-05]
[1771145035008,0.0940301,70324.0,70320.0,4e-05]
[1771145035212,0.0711008,70323.0,70320.0,4e-05]
[1771145035424,0.02293028,70324.0,70320.0,0.07114345]
[1771145035831,0.02293028,70324.0,70320.0,4e-05]
[1771145036039,0.09402982,70324.0,70320.0,4e-05]
[1771145036238,0.02293028,70323.0,70320.0,4e-05]
[1771145036777,0.07109954,70324.0,70320.0,4e-05]
[1771145036983,0.07149728,70327.0,70320.0,0.07114326]
[1771145037531,0.0004,70327.0,70320.0,4e-05]
[1771145038094,0.0004,70327.0,70322.0,0.07110053]
[1771145038302,0.0004,70327.0,70323.0,0.07109968]
[1771145038520,0.0004,70327.0,70320.0,4e-05]
[1771145038521,0.07109815,70326.0,70320.0,4e-05]
[1771145038721,0.07110041,70324.0,70320.0,4e-05]
[1771145038933,0.07110053,70323.0,70320.0,4e-05]
[1771145039126,0.07109958,70324.0,70320.0,4e-05]
[1771145039330,0.09402986,70324.0,70320.0,4e-05]
[1771145039753,0.07110072,70323.0,70316.0,0.07110737]
[1771145039954,0.07110072,70323.0,70316.0,0.07123713]
[1771145040153,0.0711019,70322.0,70316.0,0.00012976]
[1771145040353,0.07110079,70323.0,70316.0,0.07123717]
[1771145040579,0.02293028,70324.0,70316.0,0.07123717]
[1771145040809,0.09403036,70324.0,70316.0,0.07123717]
[1771145041193,0.0711009,70323.0,70316.0,0.07123717]
[1771145041602,0.07110182,70322.0,70316.0,0.00012976]
[1771145041936,0.02293028,70321.0,70320.0,0.0002]
[1771145042215,0.09403097,70323.0,70320.0,0.0002]
[1771145042440,0.02293028,70323.0,70320.0,0.0002]
[1771145043474,0.02293028,70323.0,70321.0,0.07110175]
[1771145043601,0.02293028,70323.0,70320.0,0.07130335]
[1771145044566,0.0004,70327.0,70321.0,0.07110246]
[1771145045297,0.02333028,70327.0,70321.0,0.07110246]
[1771145045682,0.0004,70327.0,70320.0,0.0002]
[1771145046100,0.0004,70327.0,70325.0,0.07109772]
[1771145046252,0.0004,70327.0,70326.0,0.07109746]
[1771145046451,0.01325713,70332.0,70331.0,0.0710924]
[1771145046770,0.01325713,70332.0,70330.0,0.07109322]
[1771145046970,0.0004,70335.0,70332.0,0.07109081]
[1771145047174,0.0004,70335.0,70331.0,0.07109214]
[1771145047574,0.0004,70335.0,70332.0,0.07109124]
[1771145048190,0.0004,70335.0,70331.0,0.07109212]
[1771145049598,0.0004,70335.0,70330.0,0.07109165]
[1771145049808,0.0004,70335.0,70327.0,0.07109603]
[1771145049983,0.0714891,70335.0,70328.0,0.07109531]
[1771145050188,0.0004,70335.0,70328.0,0.07109531]
[1771145050387,0.0004,70335.0,70329.0,0.07109416]
[1771145050598,0.0004,70335.0,70333.0,0.07108987]
[1771145050778,0.0004,70335.0,70333.0,0.07108998]
[1771145050992,0.0004,70335.0,70334.0,0.07108937]
[1771145051712,0.0004,70335.0,70323.0,0.16497298]
[1771145051713,0.0004,70339.0,70336.0,0.07108652]
[1771145051914,0.0004,70339.0,70334.0,0.07108837]
[1771145052368,0.0004,70339.0,70333.0,0.07109015]
[1771145052573,0.0912921,70382.0,70370.0,4e-05]
[1771145052771,0.91162539,70390.0,70377.0,0.15804272]
[1771145052772,0.17614047,70389.0,70377.0,0.15804272]
[1771145052972,0.17614047,70389.0,70372.0,0.02362241]
[1771145052973,0.0508712,70389.0,70372.0,0.02362241]
[1771145053178,0.0508712,70389.0,70382.0,0.07104039]
[1771145053373,0.00044,70390.0,70381.0,0.07104158]
[1771145053551,0.00044,70390.0,70381.0,0.07104167]
[1771145053746,0.07190729,70390.0,70381.0,0.07104167]
[1771145053959,0.07190729,70390.0,70372.0,0.28420349]
[1771145053960,0.00087369,70390.0,70380.0,0.91118539]
[1771145054157,0.00087369,70390.0,70384.0,0.07103801]
[1771145054644,0.00087369,70390.0,70385.0,0.07103744]
[1771145054857,0.00087369,70390.0,70384.0,0.07103801]
[1771145054858,0.00087369,70390.0,70386.0,0.07103657]
[1771145055102,0.00087369,70390.0,70387.0,0.07103562]
[1771145055301,0.00087369,70390.0,70386.0,0.07103657]
[1771145055440,0.18092667,70386.0,70378.0,0.07104415]
[1771145055626,0.02301415,70388.0,70380.0,0.07104258]
[1771145055831,0.00087369,70390.0,70384.0,0.07103809]
[1771145056074,0.00087369,70390.0,70379.0,0.07104391]
[1771145056613,0.00087369,70390.0,70382.0,0.07104004]
[1771145056949,0.00087369,70390.0,70383.0,0.0710393]
[1771145057586,0.07190658,70390.0,70382.0,0.07104004]
[1771145057760,0.07190658,70390.0,70381.0,0.07104179]
[1771145058394,0.18092667,70389.0,70382.0,0.07104069]
[1771145058566,0.18092667,70389.0,70383.0,0.07103984]
[1771145058747,0.18092667,70389.0,70382.0,0.07104069]
[1771145058946,0.00087369,70390.0,70383.0,0.07103963]
[1771145060074,0.18092667,70389.0,70371.0,0.02367668]
[1771145060275,0.27497643,70388.0,70378.0,0.07104438]
[1771145060481,0.07103609,70387.0,70377.0,0.07104576]
[1771145060683,0.18092667,70388.0,70370.0,4e-05]
[1771145060863,0.07108799,70380.0,70371.0,0.07105101]
[1771145061061,4.5e-05,70380.0,70373.0,0.07104911]
[1771145061263,4.5e-05,70380.0,70374.0,0.07104888]
[1771145061465,1.02373977,70390.0,70370.0,4e-05]
[1771145061466,0.09404825,70389.0,70380.0,0.07104197]
[1771145061829,0.07103483,70388.0,70379.0,0.07104384]
[1771145061952,0.07103485,70388.0,70379.0,0.07104391]
[1771145062379,0.0004,70380.0,70378.0,0.02367668]
[1771145062576,0.0004,70380.0,70377.0,0.07104501]
[1771145062577,0.0004,70380.0,70376.0,0.07104615]
[1771145062801,0.0004,70380.0,70377.0,0.07104558]
[1771145063146,0.0004,70380.0,70370.0,4e-05]
[1771145063336,0.07104466,70379.0,70371.0,0.07105155]
[1771145063784,0.07104552,70378.0,70370.0,4e-05]
[1771145064452,0.07104552,70378.0,70370.0,0.07109271]
[1771145065068,0.07104466,70379.0,70371.0,0.07105158]
[1771145065614,0.0004,70380.0,70370.0,4e-05]
[1771145066331,0.0004,70380.0,70370.0,0.02371668]
[1771145066526,0.0004,70380.0,70370.0,4e-05]
[1771145066755,0.0004,70380.0,70378.0,0.07104414]
[1771145067085,0.0004,70380.0,70377.0,0.07104537]
[1771145067286,0.0004,70380.0,70378.0,0.02367668]
[1771145067844,0.0004,70380.0,70375.0,0.07104771]
[1771145068093,0.0004,70380.0,70376.0,0.09472356]
[1771145069196,0.0004,70378.0,70376.0,0.09472356]
[1771145069407,0.28454153,70388.0,70371.0,0.46410825]
[1771145069408,0.0004,70386.0,70380.0,0.07104281]
[1771145070558,0.0004,70386.0,70379.0,0.07104371]
[1771145070763,0.0005815,70386.0,70379.0,0.07104371]
[1771145070961,0.07161835,70386.0,70379.0,0.07104371]
[1771145071377,0.0005815,70386.0,70380.0,0.07104276]
[1771145071816,0.0005815,70386.0,70379.0,0.07104353]
[1771145072021,0.07161843,70386.0,70379.0,0.07104353]
[1771145072579,0.0005815,70386.0,70379.0,0.07104353]
[1771145073211,0.0005815,70386.0,70373.0,0.11235516]
[1771145073408,0.07104163,70382.0,70374.0,0.18340349]
[1771145073779,0.07122313,70382.0,70375.0,0.07104779]
[1771145074039,0.0710398,70384.0,70374.0,0.11235516]
[1771145074040,0.07103984,70384.0,70374.0,0.11235516]
[1771145074248,0.07103934,70384.0,70378.0,5e-05]
[1771145074615,0.07104037,70383.0,70378.0,5e-05]
[1771145075054,0.07103934,70384.0,70378.0,5e-05]
[1771145075455,0.07103978,70385.0,70378.0,5e-05]
[1771145076304,0.07103978,70385.0,70378.0,0.11240516]
[1771145076481,0.07104009,70383.0,70378.0,0.11240516]
[1771145077385,0.0710429,70380.0,70378.0,5e-05]
[1771145077781,0.07104391,70379.0,70378.0,5e-05]
[1771145077979,0.07104391,70379.0,70373.0,0.16858275]
[1771145078206,0.07104391,70379.0,70373.0,1e-05]
[1771145078686,0.18092667,70383.0,70373.0,1e-05]
[1771145078687,0.07104305,70380.0,70373.0,0.07104995]
[1771145078890,0.07104305,70380.0,70372.0,0.23958332]
[1771145079302,0.07104305,70380.0,70375.0,0.16853275]
[1771145079627,0.27498387,70380.0,70375.0,0.16853275]
[1771145080084,0.07104429,70379.0,70375.0,0.16853275]
[1771145080268,0.09405727,70380.0,70375.0,0.16853275]
[1771145080490,0.09405727,70380.0,70378.0,0.16853275]
[1771145080703,0.18092667,70382.0,70371.0,0.0002]
[1771145080917,0.0004,70386.0,70371.0,0.0002]
[1771145080918,0.07104694,70377.0,70371.0,0.0002]
[1771145083765,0.07104694,70377.0,70375.0,0.0002]
[1771145085070,0.07104694,70378.0,70375.0,0.0002]
[1771145085224,0.30718458,70381.0,70375.0,0.0002]
[1771145085225,0.07104239,70381.0,70375.0,0.0002]
[1771145085429,0.07104196,70381.0,70375.0,0.0002]
[1771145085750,0.07104097,70382.0,70375.0,0.0002]
[1771145085946,0.07104292,70380.0,70375.0,0.0002]
[1771145088140,0.07104677,70377.0,70375.0,0.0002]
[1771145088473,0.07104662,70377.0,70375.0,0.0002]
[1771145090815,0.07104519,70378.0,70375.0,0.0002]
[1771145091479,0.07104519,70378.0,70371.0,0.07125198]
[1771145096120,0.02307259,70378.0,70368.0,0.07105411]
[1771145096336,0.07104792,70376.0,70368.0,0.07105411]
[1771145096540,0.09411852,70377.0,70360.0,4e-05]
[1771145096541,0.07105285,70371.0,70360.0,4e-05]
[1771145096762,0.07105285,70371.0,70364.0,0.07105892]
[1771145097539,0.07105273,70372.0,70363.0,0.07125827]
[1771145097746,0.07105388,70371.0,70364.0,0.07105904]
[1771145098757,0.02307259,70372.0,70366.0,0.07105633]
[1771145099396,0.02307259,70372.0,70367.0,0.07105561]
[1771145099757,0.02307259,70372.0,70371.0,0.0002]
[1771145099957,0.02307259,70372.0,70366.0,0.07105633]
[1771145099958,0.02307259,70372.0,70366.0,0.06825633]
[1771145100611,0.02307259,70372.0,70365.0,0.07105774]
[1771145100819,0.02307259,70372.0,70366.0,0.07105661]
[1771145100965,0.18084294,70371.0,70360.0,4e-05]
[1771145101175,0.18084294,70369.0,70356.0,1e-08]
[1771145101428,0.02307259,70363.0,70356.0,0.07106707]
[1771145101644,0.02307259,70363.0,70357.0,0.07106613]
[1771145102609,0.02320259,70363.0,70357.0,0.07106613]
[1771145102801,0.02320259,70363.0,70356.0,0.07106683]
[1771145103628,0.09426295,70363.0,70356.0,0.07106683]
[1771145103826,0.09426295,70363.0,70347.0,0.07107561]
[1771145103827,0.07106862,70355.0,70347.0,0.07107561]
[1771145104195,0.02307259,70357.0,70346.0,0.07107633]
[1771145104390,0.0710685,70355.0,70347.0,0.07107598]
[1771145104592,0.0710685,70355.0,70347.0,0.07107597]
[1771145104814,0.90958809,70360.0,70339.0,0.0003069]
[1771145105020,0.90958809,70350.0,70339.0,0.0003069]
[1771145105372,0.02307259,70348.0,70339.0,0.0003069]
[1771145105664,0.02307259,70348.0,70344.0,0.07107827]
[1771145105957,0.07107192,70352.0,70344.0,0.07107875]
[1771145106255,0.07107118,70352.0,70344.0,0.07107862]
[1771145106530,0.07107118,70352.0,70345.0,0.07107823]
[1771145106849,0.09414377,70352.0,70349.0,0.0002]
[1771145107251,0.25191412,70352.0,70349.0,0.0002]
[1771145107513,0.02307259,70351.0,70349.0,0.0002]
[1771145107762,0.09414491,70351.0,70349.0,0.0002]
[1771145107920,0.02307259,70350.0,70349.0,0.0002]
[1771145108125,0.09414579,70350.0,70349.0,0.0002]
[1771145108318,0.07107515,70349.0,70342.0,0.0002]
[1771145108894,0.07107543,70348.0,70342.0,0.0002]
[1771145110340,0.07107646,70347.0,70342.0,0.0002]
[1771145110754,0.02307259,70346.0,70342.0,0.0002]
[1771145111188,0.02307259,70345.0,70339.0,0.07139051]
[1771145111405,0.02307259,70345.0,70340.0,0.07108242]
[1771145111632,0.02307259,70345.0,70339.0,0.07139051]
[1771145111844,0.07108111,70343.0,70335.0,0.07108813]
[1771145112056,0.07108111,70343.0,70335.0,0.07108796]
[1771145112276,0.02307259,70345.0,70330.0,0.90962809]
[1771145112494,0.07108691,70337.0,70330.0,4e-05]
[1771145112718,0.34052,70341.0,70330.0,4e-05]
[1771145112942,0.07108039,70343.0,70335.0,0.07108809]
[1771145113203,0.07108502,70339.0,70330.0,0.02483298]
[1771145113383,0.07108702,70337.0,70330.0,4e-05]
[1771145113525,0.07108502,70339.0,70331.0,0.07109228]
[1771145114192,0.07108569,70338.0,70334.0,0.0002]
[1771145115033,0.07108454,70339.0,70334.0,0.0002]
[1771145115465,0.07108447,70339.0,70334.0,0.0002]
[1771145116328,0.02348987,70343.0,70335.0,0.07108768]
[1771145116578,0.09457084,70343.0,70335.0,0.07108768]
[1771145117045,0.07108401,70340.0,70334.0,0.0002]
[1771145117296,0.34052,70344.0,70335.0,0.07108754]
[1771145117525,1.09718395,70350.0,70340.0,0.07108273]
[1771145117526,0.07107577,70348.0,70340.0,0.07108273]
[1771145117736,0.07107577,70348.0,70336.0,0.02397534]
[1771145117737,0.07107788,70346.0,70337.0,0.07108556]
[1771145117959,0.071079,70345.0,70337.0,0.07108556]
[1771145118203,0.071079,70345.0,70338.0,0.07108522]
[1771145119126,0.28430656,70347.0,70336.0,0.02397534]
[1771145119393,0.28430656,70347.0,70335.0,0.07108767]
[1771145119394,0.07108055,70343.0,70335.0,0.07108767]
[1771145119602,0.02348987,70346.0,70334.0,0.0002]
[1771145120035,0.07108294,70341.0,70334.0,0.0002]
[1771145120277,0.07108218,70342.0,70334.0,0.0002]
[1771145120501,0.07108336,70340.0,70334.0,0.0002]
[1771145120703,0.07108743,70336.0,70334.0,0.0002]
[1771145121517,0.07108794,70336.0,70328.0,0.02660673]
[1771145121867,0.07108794,70336.0,70327.0,0.07129461]
[1771145122061,4e-05,70340.0,70330.0,0.28437366]
[1771145122311,0.0711229,70346.0,70338.0,0.07108457]
[1771145122516,4.5e-05,70346.0,70342.0,0.07108044]
[1771145122852,4.5e-05,70346.0,70338.0,0.28434132]
[1771145122853,4.5e-05,70346.0,70338.0,0.02397534]
[1771145123086,4.5e-05,70346.0,70343.0,0.07107987]
[1771145123289,4.5e-05,70346.0,70341.0,0.09505701]
[1771145123506,4.5e-05,70346.0,70341.0,0.02397534]
[1771145123677,4.5e-05,70346.0,70342.0,0.07108052]
[1771145123879,4.5e-05,70349.0,70341.0,0.09505579]
[1771145124391,4.5e-05,70349.0,70343.0,0.09505538]
[1771145124764,4e-05,70360.0,70338.0,0.90958809]
[1771145124939,0.07105842,70365.0,70353.0,0.02397534]
[1771145125142,0.07105412,70369.0,70355.0,0.02397534]
[1771145125567,0.02352987,70370.0,70355.0,0.02397534]
[1771145125568,0.07105536,70368.0,70361.0,0.07106191]
[1771145125770,0.09458319,70370.0,70362.0,0.07106108]
[1771145125973,4e-05,70370.0,70351.0,0.18415882]
[1771145126312,0.0004,70377.0,70374.0,0.07104872]
[1771145126493,0.0004,70377.0,70372.0,0.07105063]
[1771145126729,0.0004,70377.0,70339.0,0.02397534]
[1771145126730,0.02348987,70369.0,70339.0,0.02397534]
[1771145126941,0.02348987,70369.0,70338.0,0.09104]
[1771145126942,1.02344013,70360.0,70342.0,0.07108128]
[1771145127120,0.07106411,70359.0,70338.0,0.09104]
[1771145127259,0.02298987,70352.0,70341.0,0.28432641]
[1771145127466,1.3076942,70360.0,70343.0,0.07108025]
[1771145127467,0.02348987,70354.0,70343.0,0.07108025]
[1771145127677,0.02348987,70351.0,70341.0,0.07108149]
[1771145127878,0.07107385,70350.0,70342.0,0.07108045]
[1771145128253,0.09456211,70351.0,70343.0,0.07107997]
[1771145128410,0.07107017,70353.0,70343.0,0.07107997]
[1771145128594,0.07107224,70351.0,70343.0,0.07107997]
[1771145128796,0.07107224,70351.0,70342.0,0.07107938]
[1771145128797,0.28428032,70354.0,70342.0,0.07108125]
[1771145129021,0.02348987,70353.0,70342.0,0.07108125]
[1771145129222,0.07107315,70352.0,70342.0,0.07108125]
[1771145129419,0.07107351,70350.0,70340.0,0.07112155]
[1771145129597,0.07107351,70350.0,70340.0,0.0712515]
[1771145129782,0.07107551,70348.0,70340.0,0.0712515]
[1771145129987,0.07108661,70337.0,70330.0,4e-05]
[1771145130366,0.07108404,70340.0,70332.0,0.0710912]